bitfinex/quotes_ETHUSD_20220219
["timestamp","ask_amount","ask_price","bid_price","bid_amount"]
[1645281566863,0.20434867,2727.8,2727.5,1.34384532]
[1645281567068,0.20434867,2727.7,2727.5,1.34384532]
[1645281567261,0.20434867,2727.6,2727.5,1.34384532]
[1645281567467,4.35250861,2728.3,2727.5,1.34384532]
[1645281567468,3.66417991,2728.3,2727.5,1.34384532]
[1645281567662,0.74418892,2728.2,2727.6,0.9166367]
[1645281567864,0.2044303,2728.1,2727.7,1.34384532]
[1645281568264,3.66749746,2728.3,2727.7,1.34384532]
[1645281568265,0.2044303,2728.0,2727.7,1.34384532]
[1645281568464,0.2044303,2727.9,2727.7,1.34384532]
[1645281568665,0.2044303,2727.8,2727.7,1.34384532]
[1645281569064,0.83692508,2728.2,2727.7,1.34384532]
[1645281569264,0.2044303,2728.1,2727.7,3.17703532]
[1645281569467,0.2044303,2728.1,2727.9,0.91659]
[1645281569671,5.977,2728.6,2728.0,4.84384532]
[1645281569919,5.977,2728.6,2728.1,1.34384532]
[1645281569920,0.20435901,2728.5,2728.1,1.34384532]
[1645281570116,0.00331779,2728.3,2728.2,3.5]
[1645281570316,0.00331779,2728.3,2728.2,4.84384532]
[1645281570513,0.00331779,2728.3,2728.2,1.34384532]
[1645281570715,0.00331779,2728.3,2728.2,1.90458516]
[1645281570915,0.20435901,2728.7,2728.2,1.90458516]
[1645281571113,0.20435901,2728.6,2728.3,1.34384532]
[1645281571314,0.20435901,2728.6,2728.1,0.91646]
[1645281571315,0.00331802,2728.4,2728.2,1.34384532]
[1645281571514,0.00331802,2728.4,2728.3,1.3438394]
[1645281571718,0.00331802,2728.4,2727.8,1.21211616]
[1645281571917,0.00331802,2728.4,2727.9,1.34384464]
[1645281572222,0.20435901,2728.7,2727.9,1.96162037]
[1645281572223,0.6883287,2728.6,2727.9,1.96162037]
[1645281572415,0.00331799,2728.3,2728.0,1.34384464]
[1645281573118,0.207677,2728.3,2728.0,1.34384464]
[1645281573315,0.6883287,2728.7,2728.1,1.34384464]
[1645281573316,0.20435901,2728.2,2728.1,1.34384464]
[1645281573763,0.20435901,2728.2,2727.7,0.527]
[1645281573764,0.20435901,2728.2,2727.8,1.34384464]
[1645281573962,0.20435901,2728.2,2727.8,1.89839475]
[1645281574163,0.15435901,2728.2,2727.9,1.34384464]
[1645281574768,0.00331794,2728.3,2727.9,1.34384464]
[1645281575765,0.6883287,2728.7,2727.9,1.34384464]
[1645281575965,0.00331799,2728.3,2727.9,1.34384464]
[1645281576166,0.00331799,2728.3,2727.9,2.26044464]
[1645281576365,0.00331799,2728.3,2727.9,0.9166]
[1645281576764,0.63484253,2728.3,2727.9,0.9166]
[1645281576967,0.6883287,2728.7,2727.9,0.9166]
[1645281577170,0.00331799,2728.3,2727.9,0.9166]
[1645281578211,0.70101243,2728.7,2727.9,0.9166]
[1645281578411,0.00331799,2728.3,2727.9,0.9166]
[1645281579313,0.70101243,2728.7,2727.9,0.9166]
[1645281579710,0.00331799,2728.3,2727.9,0.9166]
[1645281580111,0.00182958,2728.3,2727.9,0.9166]
[1645281580513,1.38934113,2728.7,2727.9,0.9166]
[1645281580712,0.70101243,2728.7,2727.9,0.9166]
[1645281582163,0.6883287,2728.8,2727.9,0.9166]
[1645281582765,0.6883287,2728.8,2727.9,1.4436]
[1645281583166,0.00331799,2728.5,2727.9,1.44583453]
[1645281584169,0.6883287,2728.8,2727.9,1.4436]
[1645281584369,0.00331795,2728.4,2727.9,1.44583453]
[1645281585318,0.6883287,2728.8,2727.9,1.4436]
[1645281585515,0.0033179,2728.4,2727.9,1.44583453]
[1645281586617,0.6883287,2728.8,2727.9,1.4436]
[1645281586817,0.6883287,2728.8,2727.9,1.44583453]
[1645281586818,0.0033179,2728.4,2727.9,1.44583453]
[1645281587821,0.6883287,2728.8,2727.9,1.4436]
[1645281588017,0.0033179,2728.4,2727.9,1.44583453]
[1645281588762,0.6136109,2728.4,2727.9,1.44583453]
[1645281588965,0.610293,2728.4,2727.9,1.4436]
[1645281589162,0.6136109,2728.4,2727.9,1.44583453]
[1645281590067,0.610293,2728.4,2727.9,1.4436]
[1645281590468,0.6136109,2728.4,2727.9,1.44583453]
[1645281591365,0.610293,2728.4,2727.9,1.4436]
[1645281591564,0.6136109,2728.4,2727.9,1.44583453]
[1645281592417,0.0033179,2728.4,2727.9,1.44583453]
[1645281592613,0.6883287,2728.8,2727.9,1.4436]
[1645281592815,0.0033179,2728.4,2727.9,1.44583453]
[1645281593714,0.64412023,2728.6,2727.9,1.4436]
[1645281594015,0.0033179,2728.4,2727.9,1.44583453]
[1645281594216,0.0033179,2728.4,2728.0,1.34611789]
[1645281595016,0.20151123,2728.5,2728.0,1.34611789]
[1645281595216,0.00331795,2728.4,2728.0,1.34611789]
[1645281596062,0.20151123,2728.5,2728.0,1.34611789]
[1645281596461,0.00331795,2728.4,2728.0,1.34611789]
[1645281597262,0.20151123,2728.5,2728.0,1.34611789]
[1645281597665,0.00331795,2728.4,2728.0,1.34611789]
[1645281598465,0.20151123,2728.5,2728.0,1.34611789]
[1645281598866,0.00331795,2728.4,2728.0,1.34611789]
[1645281599669,0.20151123,2728.5,2728.0,1.34611789]
[1645281599912,0.00331795,2728.4,2728.0,1.34611789]
[1645281601112,0.20151123,2728.5,2728.0,1.34611789]
[1645281601314,0.00331795,2728.4,2728.0,1.34611789]
[1645281601912,0.00331795,2728.4,2728.0,4.84611789]
[1645281602117,0.00331795,2728.4,2728.1,1.87311789]
[1645281602118,0.20151123,2728.4,2728.1,1.87311789]
[1645281602315,4.9796287,2729.1,2728.2,13.34611789]
[1645281602316,0.19737516,2729.0,2728.2,13.34611789]
[1645281602516,0.6883287,2729.4,2728.5,0.3520222]
[1645281602715,0.6883287,2729.4,2728.6,4.027]
[1645281602923,4.886,2729.6,2728.6,0.527]
[1645281602924,0.6883287,2729.3,2728.6,0.527]
[1645281603114,0.6883287,2729.3,2728.7,0.56808675]
[1645281603319,0.6883287,2729.3,2728.7,1.09508675]
[1645281603570,0.00331785,2729.1,2728.7,2.92753005]
[1645281603870,0.00331785,2729.1,2728.7,1.44324]
[1645281604069,0.00331785,2729.1,2728.5,2.1844922]
[1645281604570,0.6883287,2729.3,2728.5,2.1844922]
[1645281604769,0.00331788,2728.9,2728.5,2.1844922]
[1645281604969,0.00331788,2728.9,2728.6,0.59918393]
[1645281605172,0.00331788,2728.9,2728.5,2.1844922]
[1645281605377,0.00331788,2728.9,2728.5,0.3520222]
[1645281605874,0.6883287,2729.2,2728.5,0.3520222]
[1645281606071,0.00331791,2728.8,2728.5,0.3520222]
[1645281606273,0.00331791,2728.8,2728.6,0.5179998]
[1645281607072,0.6383287,2729.3,2728.7,0.91634]
[1645281607316,0.00331791,2728.8,2728.7,4.94334]
[1645281607520,0.00331791,2728.8,2728.7,1.44334]
[1645281607720,0.00179192,2728.8,2728.7,1.44334]
[1645281608113,4.886,2729.6,2728.7,1.44334]
[1645281608114,6.38062718,2729.6,2728.7,1.44334]
[1645281608523,0.91933028,2729.5,2728.7,1.44334]
[1645281608713,0.64974347,2729.1,2728.7,0.527]
[1645281609114,0.64974347,2729.1,2728.5,0.3520222]
[1645281609714,0.00264778,2729.0,2728.5,0.3520222]
[1645281610518,0.64974347,2729.1,2728.5,0.3520222]
[1645281611078,0.00264774,2728.9,2728.5,0.3520222]
[1645281611774,0.64974347,2729.1,2728.5,0.3520222]
[1645281611974,0.0033178,2728.9,2728.5,0.3520222]
[1645281612576,0.0033178,2728.9,2728.5,0.3020222]
[1645281612977,0.64974347,2729.1,2728.5,0.3020222]
[1645281613276,0.0033178,2728.9,2728.5,0.3020222]
[1645281614276,0.64974347,2729.1,2728.5,0.3020222]
[1645281614476,0.0033178,2728.9,2728.5,0.3020222]
[1645281615319,0.64974347,2729.1,2728.5,0.3020222]
[1645281615718,0.0033178,2728.9,2728.5,0.3020222]
[1645281616521,0.64974347,2729.1,2728.5,0.3020222]
[1645281616919,0.0033178,2728.9,2728.5,0.3020222]
[1645281617819,0.68913327,2729.0,2728.5,0.3020222]
[1645281618020,0.69245107,2728.9,2728.5,0.3020222]
[1645281618224,0.63800777,2728.6,2728.5,0.3020222]
[1645281618881,0.69245107,2728.9,2728.5,0.3020222]
[1645281619079,1.60846355,2729.1,2728.5,0.3020222]
[1645281619281,0.00331766,2728.9,2728.5,0.3020222]
[1645281619478,0.00331766,2728.9,2728.5,0.6020222]
[1645281619981,0.00331766,2728.9,2728.5,1.31551451]
[1645281620178,0.57459219,2729.1,2728.5,1.61551451]
[1645281620383,0.0033178,2728.9,2728.5,2.53192451]
[1645281620681,0.0033178,2728.9,2728.5,1.8184322]
[1645281622082,0.0033178,2728.9,2728.6,0.9162954]
[1645281622325,0.0033178,2728.9,2728.7,1.3594497]
[1645281622614,0.18948157,2728.9,2728.5,1.8184322]
[1645281622812,0.19279942,2728.9,2728.6,1.35939697]
[1645281623015,0.18948157,2728.8,2728.6,1.35939697]
[1645281623213,0.18948157,2728.7,2728.6,1.35939697]
[1645281625113,0.18948157,2728.7,2728.5,0.3020222]
[1645281625314,0.18948157,2728.6,2728.5,0.3020222]
[1645281625514,8.5,2728.5,2728.2,0.1832]
[1645281625817,0.55691144,2728.0,2727.9,0.00223832]
[1645281626073,0.18948157,2728.0,2727.9,0.00223832]
[1645281626266,0.18948157,2728.0,2727.5,0.00212499]
[1645281626466,0.18948157,2727.9,2727.8,0.00223841]
[1645281626668,0.18948157,2728.2,2727.8,0.00223841]
[1645281627270,0.18948157,2728.2,2727.8,1.36273442]
[1645281627471,0.87861484,2728.2,2727.2,0.00212499]
[1645281627671,0.68913327,2728.1,2727.2,1.36198668]
[1645281627872,0.68913327,2728.1,2727.3,0.00839568]
[1645281627873,0.6220904,2727.4,2727.3,0.00839568]
[1645281628072,0.81157197,2727.4,2727.3,1.37038236]
[1645281628271,0.81157197,2727.4,2727.3,1.36825737]
[1645281628770,0.81157197,2727.4,2726.9,0.00212499]
[1645281628970,0.81157197,2727.4,2727.2,0.00209897]
[1645281628971,0.18948157,2727.3,2727.2,0.00209897]
[1645281629172,0.6220904,2727.4,2727.2,0.00209897]
[1645281629828,0.18856959,2727.3,2727.0,1.35821716]
[1645281630019,1.8678,2727.8,2727.2,0.00209901]
[1645281630219,0.18282057,2727.7,2727.2,1.36244116]
[1645281630420,0.18282057,2727.6,2727.3,1.35821716]
[1645281630622,0.18282057,2727.5,2727.3,0.00212499]
[1645281630821,0.18282057,2727.5,2727.2,0.00209901]
[1645281630822,2.10016,2728.0,2727.2,0.00209901]
[1645281631023,0.60027368,2727.4,2727.0,1.36293426]
[1645281631221,2.10016,2728.0,2727.3,0.00177185]
[1645281631421,0.18249765,2727.9,2727.3,0.00177185]
[1645281632221,0.18249765,2727.9,2727.1,0.00212499]
[1645281632420,0.55836733,2727.5,2727.1,1.36721368]
[1645281632620,0.55836733,2727.5,2727.2,1.36295033]
[1645281632827,0.55836733,2727.5,2727.1,0.00213836]
[1645281633421,0.55836733,2727.5,2727.0,1.36309289]
[1645281633671,1.91696,2728.0,2727.2,0.00177191]
[1645281633869,0.18130378,2727.9,2727.2,1.36698979]
[1645281634068,0.18130378,2727.9,2727.2,0.00177191]
[1645281634269,0.18130378,2727.9,2727.3,0.00212499]
[1645281634467,0.18130378,2727.9,2727.2,0.00177191]
[1645281634468,0.68890054,2727.7,2727.2,0.00177191]
[1645281634672,0.18130378,2727.6,2726.9,1.36525342]
[1645281634870,0.18130378,2727.6,2727.5,0.00212143]
[1645281635867,0.18130378,2727.6,2727.2,1.36225591]
[1645281636068,0.18130378,2727.6,2727.4,0.00212147]
[1645281636967,0.18130378,2727.6,2726.9,0.00212499]
[1645281637426,0.18130378,2727.6,2727.4,0.00212151]
[1645281638026,0.68890054,2727.7,2727.4,0.00212151]
[1645281638225,0.68890054,2727.7,2727.3,1.36372371]
[1645281638426,0.68890054,2727.7,2727.3,0.00212499]
[1645281638629,0.68890054,2727.7,2727.4,0.00176144]
[1645281639431,0.68890054,2727.7,2727.3,0.00212499]
[1645281639734,0.68890054,2727.7,2727.4,0.00176141]
[1645281640730,0.68890054,2727.7,2727.1,1.36298797]
[1645281640928,0.68890054,2727.7,2727.4,0.00176141]
[1645281641774,0.68890054,2727.7,2727.2,0.00212499]
[1645281642173,0.68890054,2727.7,2727.4,0.00184242]
[1645281642975,0.68890054,2727.7,2727.2,1.36298797]
[1645281643375,0.68890054,2727.7,2727.4,0.00184242]
[1645281644178,0.68890054,2727.7,2727.3,0.00212499]
[1645281644377,0.68890054,2727.7,2727.2,0.3]
[1645281644583,0.68890054,2727.7,2727.4,0.00184242]
[1645281645417,0.68890054,2727.7,2727.3,0.00212499]
[1645281645619,0.68890054,2727.7,2727.4,0.00182419]
[1645281646718,0.91693,2728.1,2727.3,0.00212499]
[1645281646923,0.1808545,2728.0,2727.4,0.00182419]
[1645281647121,6.3188,2728.2,2727.4,0.00182419]
[1645281647320,0.18086597,2728.1,2727.4,0.00182419]
[1645281647923,0.61964677,2727.9,2727.3,1.36251267]
[1645281648122,0.61964677,2727.9,2727.6,0.00182406]
[1645281648769,6.3188,2728.2,2727.6,0.00049969]
[1645281648969,1.0979536,2728.1,2727.3,1.36251267]
[1645281649168,0.1810236,2728.0,2727.3,1.36251267]
[1645281649870,6.3188,2728.2,2727.3,1.36251267]
[1645281650076,0.69258922,2728.0,2727.3,1.94747475]
[1645281650272,0.18107437,2727.9,2727.3,0.58708707]
[1645281650470,0.69258922,2728.0,2727.4,1.36092146]
[1645281650671,0.69258922,2728.0,2727.4,1.66092146]
[1645281650872,0.69258922,2728.0,2727.4,0.6]
[1645281651071,0.69258922,2728.0,2727.4,0.3]
[1645281651276,0.69258922,2728.0,2727.3,0.88708707]
[1645281651476,0.1832,2728.5,2727.4,1.36085257]
[1645281651676,2.56692818,2728.7,2727.5,3.50212499]
[1645281651677,0.00265019,2728.3,2727.5,3.50212499]
[1645281651974,0.00265019,2728.3,2727.6,1.88997756]
[1645281652174,0.00265019,2728.3,2727.7,4.86085257]
[1645281652426,0.00265019,2728.3,2727.8,1.36085257]
[1645281652630,0.18103073,2728.6,2727.8,1.36085257]
[1645281652824,0.67985152,2728.5,2727.8,1.91545908]
[1645281653022,0.00332089,2728.3,2727.8,0.55460651]
[1645281653224,0.00332089,2728.3,2727.7,0.9166]
[1645281653425,0.00332089,2728.3,2727.8,1.36164824]
[1645281653624,0.00332089,2728.3,2727.9,0.3]
[1645281653822,0.18103073,2728.4,2727.9,0.3]
[1645281654021,0.18103073,2728.4,2727.8,0.3]
[1645281654222,0.18103073,2728.4,2727.6,2.13136022]
[1645281654223,0.00332094,2728.3,2727.6,2.13136022]
[1645281654426,0.00332094,2728.3,2727.7,1.36187265]
[1645281655022,0.18103073,2728.4,2727.7,1.36187265]
[1645281655227,0.00332089,2728.3,2727.7,1.36187265]
[1645281656269,0.18103073,2728.4,2727.7,1.36187265]
[1645281656472,0.00332089,2728.3,2727.7,1.36187265]
[1645281657075,0.56891867,2728.0,2727.7,1.36187265]
[1645281657475,0.56891867,2728.0,2727.4,0.00212499]
[1645281657476,0.32159877,2727.6,2727.4,0.00212499]
[1645281657676,0.32159877,2727.6,2727.4,1.364449]
[1645281657881,0.32159877,2727.6,2727.3,0.00894221]
[1645281658076,0.32159877,2727.6,2727.4,1.36462995]
[1645281659279,0.32159877,2727.6,2727.4,1.96462995]
[1645281659478,0.32159877,2727.6,2727.5,1.89162995]
[1645281659677,0.32159877,2727.6,2727.5,5.39162995]
[1645281660327,0.32159877,2727.6,2727.5,1.89162995]
[1645281660531,0.32159877,2727.6,2727.5,1.36462995]
[1645281660727,0.32159877,2727.6,2727.4,1.36462995]
[1645281660928,0.32159877,2727.6,2727.5,1.36462995]
[1645281661124,0.32159877,2727.6,2727.1,0.00212499]
[1645281661328,0.32159877,2727.6,2727.4,0.00222988]
[1645281661729,0.1794503,2727.5,2727.4,0.00222988]
[1645281662325,0.1794503,2727.5,2727.2,0.00212499]
[1645281662326,0.83159033,2727.5,2727.2,0.00212499]
[1645281662525,0.65214003,2727.5,2727.3,0.00222992]
[1645281663579,0.65214003,2727.5,2727.3,1.36555735]
[1645281663779,0.65214003,2727.5,2727.3,0.00222996]
[1645281664585,0.65214003,2727.5,2727.2,1.36566215]
[1645281664784,0.32159877,2727.6,2727.3,1.36566215]
[1645281664985,0.32159877,2727.6,2727.3,0.00222996]
[1645281665384,0.17976114,2727.5,2727.3,0.00222996]
[1645281665983,0.17976114,2727.5,2727.1,0.00212499]
[1645281666183,0.17976114,2727.5,2727.3,0.00222996]
[1645281666684,0.17976114,2727.5,2727.3,1.36798475]
[1645281666885,0.17976114,2727.5,2727.4,1.36575479]
[1645281667330,0.17967281,2727.5,2727.4,1.36575479]
[1645281667517,0.17967281,2727.5,2727.3,0.00222996]
[1645281667920,0.32159877,2727.6,2727.4,0.527]
[1645281668119,0.32159877,2727.6,2727.5,4.86575479]
[1645281668324,0.32159877,2727.6,2727.5,5.99275479]
[1645281669120,0.32159877,2727.6,2727.5,2.49275479]
[1645281669622,0.50157993,2727.6,2727.5,2.49275479]
[1645281670020,0.50157993,2727.6,2727.5,1.96575479]
[1645281671768,0.50157993,2727.6,2727.5,1.36575479]
[1645281672172,0.50157993,2727.6,2727.4,0.00222984]
[1645281672370,0.17998116,2727.5,2727.4,0.00222984]
[1645281673171,0.17998116,2727.5,2727.3,1.36575479]
[1645281673371,0.17998116,2727.5,2727.3,1.36798471]
[1645281674273,0.17998116,2727.5,2727.3,1.36575479]
[1645281674674,0.17998116,2727.5,2727.3,1.36798475]
[1645281675524,0.17998116,2727.5,2727.3,1.36575479]
[1645281675923,0.17998116,2727.5,2727.3,1.36798475]
[1645281676724,0.17998116,2727.5,2727.3,1.36575479]
[1645281676926,0.17998116,2727.5,2727.3,1.36798475]
[1645281678025,0.17998116,2727.5,2727.3,1.36575479]
[1645281678225,0.17998116,2727.5,2727.3,1.36798475]
[1645281679077,0.17998116,2727.5,2727.3,2.28251479]
[1645281679278,0.32159877,2727.6,2727.4,1.36575479]
[1645281679476,0.01884321,2727.6,2727.4,1.36575479]
[1645281680680,0.01884321,2727.6,2727.4,1.36798467]
[1645281680881,0.17448402,2727.5,2727.4,1.36798467]
[1645281681190,0.17448402,2727.5,2727.4,0.00222988]
[1645281681383,0.01884321,2727.6,2727.4,1.66798467]
[1645281681582,0.01884321,2727.6,2727.5,1.36575479]
[1645281681984,0.1933046,2727.6,2727.4,1.36575479]
[1645281682183,0.1933046,2727.6,2727.5,1.36575479]
[1645281682184,0.01884321,2727.6,2727.5,1.36575479]
[1645281682432,0.01884321,2727.6,2727.3,1.3701097]
[1645281682638,0.17447719,2727.5,2727.4,1.36575479]
[1645281683029,0.17447719,2727.5,2727.3,1.36798471]
[1645281684031,0.17447719,2727.5,2727.3,1.36575479]
[1645281684229,0.17447719,2727.5,2727.3,1.36798475]
[1645281685230,0.17447719,2727.5,2727.3,1.36575479]
[1645281685428,0.17447719,2727.5,2727.3,1.36798475]
[1645281686378,0.17447719,2727.5,2727.3,1.36575479]
[1645281686577,0.17447719,2727.5,2727.3,1.36798475]
[1645281687475,0.17447719,2727.5,2727.3,1.36575479]
[1645281687681,0.17447719,2727.5,2727.3,2.28251479]
[1645281687879,0.17447719,2727.5,2727.4,1.36575479]
[1645281688082,0.17447719,2727.5,2727.4,1.45187095]
[1645281688281,0.01884321,2727.6,2727.4,1.45187095]
[1645281688480,0.01884321,2727.6,2727.5,1.36575479]
[1645281688686,0.01884321,2727.6,2727.5,0.08611616]
[1645281688884,0.01884321,2727.6,2727.5,1.45187095]
[1645281689079,0.01884321,2727.6,2727.5,1.36575479]
[1645281689680,0.19305564,2727.6,2727.5,1.36575479]
[1645281690124,0.01884321,2727.6,2727.5,1.36575479]
[1645281690525,0.01884321,2727.6,2727.5,4.86575479]
[1645281690729,0.01884321,2727.6,2727.5,5.99275479]
[1645281690930,0.01884321,2727.6,2727.5,6.69089478]
[1645281691127,0.01884321,2727.6,2727.5,8.60747478]
[1645281691332,4.321e-05,2727.6,2727.5,8.69359094]
[1645281691537,0.00332046,2728.3,2727.6,19.82386576]
[1645281691730,0.00332046,2728.3,2728.2,0.94764638]
[1645281691930,0.17741316,2728.3,2728.2,0.94764638]
[1645281692128,0.00332046,2728.3,2728.2,2.61340117]
[1645281692429,0.1740927,2728.8,2728.2,2.61340117]
[1645281692631,0.00332101,2728.4,2728.3,5.39275479]
[1645281692928,0.00332101,2728.4,2728.3,3.19275479]
[1645281693427,0.00332101,2728.4,2728.3,6.69275479]
[1645281693692,0.91933028,2729.4,2728.4,11.13]
[1645281693693,0.17345639,2728.9,2728.4,11.13]
[1645281693893,0.17345639,2728.8,2728.5,7.49221549]
[1645281694093,0.17345639,2728.7,2728.6,1.36575479]
[1645281694292,0.17345639,2728.7,2728.6,2.07595479]
[1645281694891,0.17345639,2728.7,2728.6,0.527]
[1645281695088,0.17345639,2728.7,2728.5,1.3]
[1645281695290,0.17345639,2728.6,2728.5,0.3]
[1645281695687,0.17345639,2728.6,2728.5,1.3]
[1645281695889,0.17345639,2728.6,2728.5,1.0]
[1645281696089,0.17345639,2728.6,2728.3,1.3]
[1645281696288,0.17345639,2728.5,2728.4,1.38651759]
[1645281696694,0.17345639,2728.5,2728.4,2.38651759]
[1645281697089,0.10606097,2728.5,2728.4,1.0]
[1645281697340,0.10606097,2728.5,2728.3,1.51643]
[1645281697528,0.00327917,2728.6,2728.3,1.51643]
[1645281698234,0.00327917,2728.6,2728.4,1.8326]
[1645281698533,0.68913327,2729.3,2728.5,0.3]
[1645281698732,0.00322939,2728.6,2728.5,1.127]
[1645281699135,0.00322939,2728.6,2728.5,2.127]
[1645281699437,0.00322939,2728.6,2728.5,0.68554048]
[1645281699633,0.68913327,2729.2,2728.5,0.68554048]
[1645281699835,0.00322937,2728.7,2728.5,0.68554048]
[1645281700836,0.68913327,2729.3,2728.5,0.68554048]
[1645281701086,0.00322936,2728.7,2728.5,0.68554048]
[1645281702083,0.68913327,2729.3,2728.5,0.68554048]
[1645281702278,0.00319053,2728.7,2728.5,0.15854048]
[1645281702678,0.00319053,2728.7,2728.3,2.51643]
[1645281703179,0.68913327,2729.3,2728.3,2.51643]
[1645281703582,3.5,2729.4,2728.5,0.91635]
[1645281703583,0.00319055,2728.6,2728.5,0.91635]
[1645281703879,0.00319055,2728.6,2728.5,1.21635]
[1645281704482,0.68913327,2729.4,2728.5,1.74335]
[1645281704686,0.00319054,2728.7,2728.5,1.74335]
[1645281704928,0.00319054,2728.7,2728.6,0.3]
[1645281705334,0.00319054,2728.7,2728.6,0.827]
[1645281705727,9.96793327,2729.7,2728.9,0.9162]
[1645281705728,0.68913327,2729.6,2728.9,0.9162]
[1645281706130,0.68913327,2729.6,2728.7,1.8324]
[1645281706328,0.68913327,2729.6,2728.7,2.8324]
[1645281706528,1.34352116,2729.6,2728.7,1.8324]
[1645281706734,1.34352116,2729.6,2728.8,1.6]
[1645281706735,0.65438789,2729.6,2728.8,1.6]
[1645281706929,0.65438789,2729.6,2729.1,0.55961758]
[1645281707129,0.00319916,2729.3,2729.1,0.55961758]
[1645281707732,0.00319916,2729.3,2729.1,0.85961758]
[1645281708232,0.00319915,2729.3,2729.1,1.15961758]
[1645281708432,0.00319915,2729.3,2729.1,0.85961758]
[1645281708679,0.00319915,2729.3,2729.1,0.3]
[1645281709081,0.00319915,2729.3,2728.7,1.7683]
[1645281709281,4.18913327,2729.6,2728.7,1.4683]
[1645281709481,0.68913327,2729.5,2728.7,1.4683]
[1645281709679,0.00319718,2729.3,2728.7,1.1683]
[1645281709885,0.00319718,2729.3,2728.5,0.59013149]
[1645281710480,0.68913327,2729.5,2728.5,0.59013149]
[1645281710680,0.00319724,2729.0,2728.5,0.59013149]
[1645281711081,0.00319724,2729.0,2728.5,1.19013149]
[1645281711280,0.00319724,2729.0,2728.5,1.97577486]
[1645281711481,0.00319724,2729.0,2728.6,0.527]
[1645281711780,0.82733324,2729.8,2728.6,0.527]
[1645281711982,0.58053051,2729.8,2728.6,0.527]
[1645281713336,0.58053051,2729.8,2728.7,1.83246]
[1645281713529,6.24353767,2729.9,2728.8,0.3]
[1645281713731,5.32420739,2729.9,2728.8,0.3]
[1645281714128,5.32420739,2729.9,2728.8,1.3]
[1645281714328,5.32420739,2729.9,2728.8,0.3]
[1645281714530,5.32420739,2729.9,2728.9,0.91623]
[1645281714728,5.32420739,2729.9,2728.9,1.21623]
[1645281714934,5.32420739,2729.9,2728.9,1.3]
[1645281715128,5.32420739,2729.9,2728.9,0.3]
[1645281715331,5.32420739,2729.9,2728.9,1.0]
[1645281715528,5.32420739,2729.9,2728.8,1.6]
[1645281716578,6.24353767,2729.9,2728.8,1.6]
[1645281716781,0.00332074,2729.5,2728.8,1.6]
[1645281717584,0.14790218,2729.8,2728.8,1.6]
[1645281717981,0.00332079,2729.3,2728.8,1.6]
[1645281718780,0.14795828,2729.8,2728.8,1.6]
[1645281719184,0.00332082,2729.2,2728.8,1.6]
[1645281720021,0.14795828,2729.8,2728.8,1.6]
[1645281720224,0.00332083,2729.1,2728.8,1.6]
[1645281720922,0.00332083,2729.1,2728.9,0.91621]
[1645281721124,0.00332083,2729.1,2728.9,0.73834988]
[1645281721324,0.14795828,2729.2,2729.0,0.3]
[1645281721524,0.00332083,2729.1,2729.0,0.3]
[1645281722128,0.00332083,2729.1,2729.0,0.827]
[1645281722327,0.00332083,2729.1,2729.0,1.827]
[1645281722528,1.5,2729.3,2729.0,2.22657679]
[1645281722732,0.00332082,2729.2,2729.0,3.65917]
[1645281723026,0.00332082,2729.2,2729.0,3.84237]
[1645281723425,0.00332082,2729.2,2729.0,4.7584526]
[1645281723680,1.5,2729.3,2729.0,5.6745126]
[1645281723878,0.0033208,2729.2,2729.1,2.61749231]
[1645281724079,0.0033208,2729.2,2729.1,3.14449231]
[1645281724279,0.0033208,2729.2,2729.1,4.14449231]
[1645281724779,0.0033208,2729.2,2729.1,2.74306]
[1645281724980,1.5,2729.3,2729.1,2.74306]
[1645281725178,1.5,2729.3,2729.2,1.0]
[1645281725179,1.50332079,2729.3,2729.2,1.0]
[1645281725680,1.64524395,2729.3,2729.2,1.0]
[1645281725881,1.64524395,2729.3,2729.1,1.0]
[1645281726082,1.5,2729.3,2729.0,2.95917]
[1645281726281,1.5,2729.3,2729.1,1.0]
[1645281726880,0.14206791,2729.2,2729.1,1.0]
[1645281733584,0.14206791,2729.2,2729.1,2.40427888]
[1645281735528,0.14206791,2729.2,2729.1,1.0]
[1645281735732,0.14206791,2729.2,2729.1,1.40558755]
[1645281736126,0.14206791,2729.2,2729.1,2.40558755]
[1645281736427,0.14206791,2729.2,2729.1,1.40558755]
[1645281736625,0.14206791,2729.2,2729.1,2.40558755]
[1645281741380,0.14206791,2729.2,2729.1,1.0]
[1645281741578,0.14206791,2729.2,2729.1,2.40834197]
[1645281741779,0.14206791,2729.2,2729.1,1.40834197]
[1645281741980,0.14206791,2729.2,2729.1,2.40834197]
[1645281743954,0.14206791,2729.2,2729.1,2.93534197]
[1645281746187,0.14206791,2729.2,2729.1,1.0]
[1645281746383,0.14206791,2729.2,2729.1,1.41134032]
[1645281746582,0.14206791,2729.2,2729.0,0.6]
[1645281746784,0.14206791,2729.2,2729.1,1.41138123]
[1645281746984,0.25587014,2729.0,2728.8,1.0]
[1645281747185,0.25587014,2729.0,2728.6,1.0]
[1645281747186,0.14206791,2728.9,2728.6,1.0]
[1645281747389,0.14206791,2728.9,2728.7,1.41142369]
[1645281748184,0.14206791,2728.9,2728.3,1.1806]
[1645281748385,0.14206791,2728.9,2728.1,0.00224553]
[1645281748386,0.14206791,2728.9,2728.4,1.41164918]
[1645281748588,0.82840851,2728.9,2728.5,1.41164918]
[1645281748792,3.5,2728.8,2728.1,0.00224553]
[1645281748988,0.14206791,2728.7,2728.0,2.09458199]
[1645281749188,0.14206791,2728.7,2728.1,2.32825472]
[1645281749487,0.14206791,2728.7,2728.2,1.41173472]
[1645281750227,0.14206791,2728.6,2728.2,1.41173472]
[1645281750530,4.44221074,2729.0,2728.2,1.71173472]
[1645281750531,0.25919056,2729.0,2728.2,1.71173472]
[1645281750728,0.13881658,2728.9,2728.3,1.41173472]
[1645281750926,0.13881658,2728.9,2728.4,0.91637]
[1645281751127,0.13881658,2728.9,2728.5,1.41173472]
[1645281751334,0.13881658,2728.9,2728.5,1.71173472]
[1645281751528,0.13881658,2728.9,2728.6,1.93873472]
[1645281751731,0.13881658,2728.9,2728.7,1.41173472]
[1645281752131,0.13881658,2728.9,2728.7,1.71173472]
[1645281752333,0.13881658,2728.9,2728.8,1.41173472]
[1645281752836,5.11253028,2729.6,2728.9,8.5]
[1645281752837,0.91933028,2729.6,2728.9,8.5]
[1645281753034,1.37941441,2729.8,2728.9,19.82403201]
[1645281753035,1.1054,2729.0,2728.9,19.82403201]
[1645281753230,0.91933028,2730.2,2729.1,11.13]
[1645281753430,0.00764437,2730.1,2729.3,11.13]
[1645281753685,0.00764437,2730.1,2729.6,0.91583]
[1645281753987,0.00764437,2730.2,2729.8,1.83163]
[1645281754182,0.00764437,2730.3,2729.9,0.527]
[1645281754383,1.9136,2730.6,2729.9,0.527]
[1645281754384,0.00764437,2730.5,2729.9,0.527]
[1645281754583,0.00764437,2730.6,2730.1,0.9157433]